bitfinex-derivatives/quotes_BNBF0:USTF0_20250709
["timestamp","ask_amount","ask_price","bid_price","bid_amount"]
[1752081641294,1.69174578,663.13,662.73,3.29206667]
[1752081642196,1.69174578,663.13,662.73,1.598]
[1752081642492,1.69174578,663.13,662.73,3.29206667]
[1752081643193,1.69174578,663.28,662.73,1.598]
[1752081643396,1.69174578,663.3,662.73,1.598]
[1752081644496,1.69174578,663.3,662.54,1.69406667]
[1752081648403,1.69174578,663.3,662.55,2.392]
[1752081649202,1.69174578,663.29,662.55,2.392]
[1752081650707,1.69174578,663.3,662.55,2.392]
[1752081650905,1.69174578,663.34,662.58,1.69406667]
[1752081653102,1.69174578,663.28,662.68,1.69406667]
[1752081653599,1.69174578,663.27,662.67,1.69406667]
[1752081654903,1.69174578,663.28,662.67,1.69406667]
[1752081660006,1.69174578,663.28,662.68,1.69406667]
[1752081660608,1.69174578,663.26,662.7,1.69406667]
[1752081661409,1.69174578,663.21,662.79,1.69406667]
[1752081662409,1.69174578,663.2,662.79,1.69406667]
[1752081664817,1.69174578,663.19,662.8,1.69406667]
[1752081666911,1.69174578,663.19,662.81,1.69406667]
[1752081667514,1.69174578,663.19,662.8,1.69406667]
[1752081667916,1.69174578,663.23,662.75,1.69406667]
[1752081673314,1.69174578,663.23,662.74,1.69406667]
[1752081677420,2.26101505,663.37,662.74,1.69406667]
[1752081677421,1.69174578,663.22,662.74,1.69406667]
[1752081677921,1.69174578,663.2,662.78,1.69406667]
[1752081678118,1.69174578,663.2,662.77,1.69406667]
[1752081681724,1.69174578,663.2,662.78,1.69406667]
[1752081683128,1.69174578,663.19,662.79,1.69406667]
[1752081686030,1.69174578,663.2,662.79,1.69406667]
[1752081687336,1.69174578,663.2,662.8,1.69406667]
[1752081687526,1.69174578,663.19,662.8,1.69406667]
[1752081688327,1.69174578,663.2,662.79,1.69406667]
[1752081693028,1.69174578,663.21,662.78,1.69406667]
[1752081695331,1.69174578,663.2,662.78,1.69406667]
[1752081695728,1.69174578,663.2,662.77,1.69406667]
[1752081696233,1.69174578,663.2,662.78,1.69406667]
[1752081696436,1.69174578,663.19,662.77,1.69406667]
[1752081696634,1.69174578,663.2,662.76,1.69406667]
[1752081697333,1.69174578,663.37,662.5,1.69406667]
[1752081698036,1.69174578,663.21,662.44,1.69406667]
[1752081698236,1.69174578,663.21,662.42,1.69406667]
[1752081698931,2.26101505,663.46,662.37,0.26251273]
[1752081699136,1.69272717,663.21,662.42,1.69568704]
[1752081699336,1.69272717,663.2,662.43,1.69568704]
[1752081699935,1.69272717,663.2,662.37,0.26251273]
[1752081699936,1.69272717,663.2,662.44,1.69568704]
[1752081700139,1.69272717,663.2,662.44,3.65468704]
[1752081700434,1.69272717,663.2,662.44,1.959]
[1752081701340,1.69272717,663.21,662.44,1.959]
[1752081703039,1.69272717,663.19,662.46,1.69568704]
[1752081703243,1.69272717,663.2,662.45,1.69568704]
[1752081703638,1.69272717,663.19,662.47,1.69568704]
[1752081704138,1.69272717,663.19,662.44,1.959]
[1752081704139,1.69272717,663.19,662.46,1.69568704]
[1752081707144,1.69272717,663.19,662.47,1.69568704]
[1752081707344,1.69272717,663.15,662.53,1.69568704]
[1752081707745,1.69272717,663.13,662.56,1.69568704]
[1752081711347,1.69272717,663.14,662.55,1.69568704]
[1752081713847,1.69272717,663.15,662.54,1.69568704]
[1752081714044,1.69272717,663.15,662.53,1.69568704]
[1752081715049,1.69272717,663.15,662.54,1.69568704]
[1752081715550,1.69272717,663.15,662.53,1.69568704]
[1752081716451,1.69272717,663.16,662.54,1.69568704]
[1752081720245,1.69272717,663.16,662.55,1.69568704]
[1752081722749,1.69272717,663.17,662.54,1.69568704]
[1752081723456,1.69272717,663.17,662.44,1.959]
[1752081723457,1.69272717,663.16,662.56,1.69568704]
[1752081723655,1.69272717,663.16,662.57,1.69568704]
[1752081724955,1.69272717,663.15,662.58,1.69568704]
[1752081727957,1.69272717,663.17,662.56,1.69568704]
[1752081731160,1.69272717,663.16,662.56,1.69568704]
[1752081732659,1.69272717,663.16,662.57,1.69568704]
[1752081733361,1.69272717,663.15,662.57,1.69568704]
[1752081736169,1.69272717,663.15,662.58,1.69568704]
[1752081736459,5.64759801,663.94,662.57,1.69568704]
[1752081736460,1.69272717,663.16,662.57,1.69568704]
[1752081737262,1.69272717,663.17,662.54,1.69568704]
[1752081737866,1.69272717,663.17,662.55,1.69568704]
[1752081738267,1.69272717,663.16,662.55,1.69568704]
[1752081738568,1.69272717,663.16,662.56,1.69568704]
[1752081738969,1.69272717,663.17,662.56,1.69568704]
[1752081739266,1.69272717,663.16,662.56,1.69568704]
[1752081743767,1.69272717,663.16,662.57,1.69568704]
[1752081744069,1.69272717,663.15,662.57,1.69568704]
[1752081744471,1.69272717,663.16,662.56,1.69568704]
[1752081746173,1.69272717,663.15,662.56,1.69568704]
[1752081746373,1.69272717,663.15,662.57,1.69568704]
[1752081746571,1.69272717,663.15,662.44,1.959]
[1752081746572,1.69272717,663.16,662.55,1.69568704]
[1752081747073,1.69272717,663.15,662.57,1.69568704]
[1752081749271,1.69272717,663.14,662.58,1.69568704]
[1752081750974,1.69272717,663.13,662.58,1.69568704]
[1752081751174,1.69272717,663.13,662.59,1.69568704]
[1752081753278,1.69272717,663.12,662.6,1.69568704]
[1752081754182,1.69272717,663.12,662.61,1.69568704]
[1752081754380,1.69272717,663.11,662.62,1.69568704]
[1752081755287,1.69272717,663.1,662.62,1.69568704]
[1752081755578,1.69272717,663.1,662.63,1.69568704]
[1752081756092,1.69272717,663.09,662.63,1.69568704]
[1752081756482,1.69272717,663.06,662.67,1.69568704]
[1752081757387,1.69272717,663.04,662.68,1.69568704]
[1752081758082,1.69272717,663.04,662.57,2.2631763]
[1752081758083,1.69272717,663.04,662.69,1.69568704]
[1752081759388,1.69272717,663.04,662.7,2.2]
[1752081760981,1.69272717,663.13,662.7,2.2]
[1752081765988,1.69272717,663.1,662.7,2.2]
[1752081770987,1.69272717,663.07,662.7,2.2]
[1752081771491,1.69272717,663.05,662.7,2.2]
[1752081772291,1.69272717,663.04,662.7,2.2]
[1752081772693,1.69272717,663.03,662.7,2.2]
[1752081772992,1.69272717,663.02,662.7,2.2]
[1752081773993,1.69272717,663.0,662.7,2.2]
[1752081776129,1.69272717,663.03,662.7,2.2]
[1752081776294,1.69272717,663.05,662.7,2.2]
[1752081776799,0.26258998,662.95,662.7,2.2]
[1752081777101,2.26101505,662.83,662.7,2.2]
[1752081777305,2.26101505,662.77,662.7,2.2]
[1752081777601,2.26101505,662.81,662.7,2.2]
[1752081777797,1.68797848,662.74,662.7,2.2]
[1752081777999,2.26101505,662.89,662.7,2.2]
[1752081778197,1.68792175,662.71,662.7,2.2]
[1752081778397,1.68792175,662.77,662.7,2.2]
[1752081778797,1.68792175,662.78,662.7,2.2]
[1752081779002,1.68792175,662.79,662.7,2.2]
[1752081779397,0.26266034,662.77,662.7,2.2]
[1752081804513,0.26266034,662.77,661.9,0.26263259]
[1752081808422,0.26266034,662.77,661.91,1.746]
[1752081820631,0.26266034,662.77,661.92,1.69568704]
[1752081821130,0.26266034,662.77,661.94,1.69568704]
[1752081821326,0.26266034,662.77,662.0,1.69568704]
[1752081822632,0.26266034,662.77,661.9,0.26263259]
[1752081822633,0.26266034,662.77,662.01,1.69568704]
[1752081824229,0.26266034,662.77,662.02,1.69568704]
[1752081825036,0.26266034,662.77,662.03,1.575]
[1752081825435,0.26266034,662.77,662.03,3.27068704]
[1752081825837,0.26266034,662.77,662.06,1.69568704]
[1752081826734,0.26266034,662.77,662.07,1.69568704]
[1752081827537,0.26266034,662.77,662.08,1.69568704]
[1752081828534,0.26266034,662.77,662.1,1.69568704]
[1752081828937,0.26266034,662.77,662.09,1.69568704]
[1752081829338,0.26266034,662.77,662.06,1.69568704]
[1752081829541,0.26266034,662.77,662.07,1.69568704]
[1752081830338,0.26266034,662.77,662.08,1.69568704]
[1752081830541,0.26266034,662.77,662.09,1.69568704]
[1752081830836,0.26266034,662.77,662.03,1.575]
[1752081831034,0.26266034,662.77,662.09,1.68790218]
[1752081831439,0.26266034,662.77,662.1,1.68790218]
[1752081832540,0.26266034,662.77,662.11,1.68790218]
[1752081832739,0.26266034,662.77,662.12,1.68790218]
[1752081833038,0.26266034,662.77,662.16,1.68790218]
[1752081833538,0.26266034,662.77,662.17,1.68790218]
[1752081834440,0.26266034,662.77,662.21,1.68790218]
[1752081835041,0.26266034,662.77,662.22,1.68790218]
[1752081835544,0.26266034,662.77,662.03,1.575]
[1752081835545,0.26266034,662.77,662.21,1.68790218]
[1752081836741,0.26266034,662.77,662.23,1.68790218]
[1752081839344,0.26266034,662.77,662.25,1.68790218]
[1752081839638,0.26266034,662.77,662.24,1.68790218]
[1752081840543,0.26266034,662.77,662.25,1.68790218]
[1752081843344,0.26266034,662.77,662.24,1.68790218]
[1752081845247,0.26266034,662.77,662.27,1.68790218]
[1752081846447,0.26266034,662.77,662.28,1.68790218]
[1752081846743,0.26266034,662.77,662.3,1.68790218]
[1752081847948,0.26266034,662.77,662.24,1.68790218]
[1752081852550,0.26266034,662.77,662.23,1.68790218]
[1752081853351,0.26266034,662.77,662.23,1.69256528]
[1752081857762,0.26266034,662.77,662.28,1.69256528]
[1752081858862,0.26266034,662.77,662.27,1.69256528]
[1752081859060,0.26266034,662.77,662.28,1.69256528]
[1752081860258,0.26266034,662.77,662.29,1.69256528]
[1752081861857,0.26266034,662.77,662.3,1.69256528]
[1752081862560,0.26266034,662.77,662.31,1.69256528]
[1752081862961,0.26266034,662.77,662.3,1.69256528]
[1752081863160,0.26266034,662.77,662.3,1.69296521]
[1752081864566,0.26266034,662.77,662.31,1.906]
[1752081865268,0.26266034,662.77,662.31,3.59896521]
[1752081866265,0.26266034,662.77,662.32,1.69296521]
[1752081867265,0.26266034,662.77,662.33,1.69296521]
[1752081868366,0.26266034,662.77,662.34,1.69296521]
[1752081868869,0.26266034,662.77,662.33,1.69296521]
[1752081869070,0.26266034,662.77,662.34,1.69296521]
[1752081871168,0.26266034,662.77,662.35,1.69296521]
[1752081873574,0.26266034,662.77,662.31,1.906]
[1752081873771,0.26266034,662.77,662.32,1.69296521]
[1752081874373,0.26266034,662.77,662.33,1.69296521]
[1752081874873,0.26266034,662.77,662.31,1.906]
[1752081876170,0.26266034,662.77,662.31,3.59896521]
[1752081880675,0.26266034,662.77,662.31,1.69296521]
[1752081880875,0.26266034,662.77,662.32,1.69296521]
[1752081882876,0.26266034,662.77,662.33,1.841]
[1752081884774,0.26266034,662.77,662.35,1.69296521]
[1752081885377,0.26266034,662.77,662.36,1.69296521]
[1752081890178,0.26266034,662.77,662.37,1.69296521]
[1752081890781,0.26266034,662.77,662.35,1.69296521]
[1752081891181,0.26266034,662.77,662.36,1.69296521]
[1752081891579,1.68854082,662.82,662.36,1.69296521]
[1752081891782,1.68854082,662.83,662.36,1.69296521]
[1752081892280,1.95116945,662.85,662.33,3.53396521]
[1752081892778,1.68854082,662.84,662.33,3.53396521]
[1752081892983,1.68854082,662.84,662.34,1.69296521]
[1752081893184,1.95116945,662.85,662.35,1.69296521]
[1752081893679,0.26262863,662.85,662.42,1.69296521]
[1752081894381,0.26262863,662.85,662.41,1.69296521]
[1752081895284,0.26262863,662.85,662.4,1.69296521]
[1752081897287,0.26262863,662.85,662.41,2.371]
[1752081902189,0.26262863,662.85,662.43,1.69296521]
[1752081906091,0.26262863,662.85,662.42,1.69296521]
[1752081907888,0.26262863,662.85,662.41,2.371]
[1752081917797,1.95116945,662.85,662.41,2.371]
[1752081921497,0.26262863,662.85,662.41,2.371]
[1752081922499,1.95116945,662.85,662.41,2.371]
[1752081922899,1.68854082,662.84,662.41,2.371]
[1752081923397,1.69154844,662.84,662.41,2.371]
[1752081925302,1.95417707,662.85,662.41,2.371]
[1752081926300,1.69154844,662.84,662.41,2.371]
[1752081927298,1.69154844,662.84,662.39,1.69552948]
[1752081929210,0.26262863,662.85,662.28,2.2631763]
[1752081929510,1.69184082,662.84,662.4,1.69582287]
[1752081930010,1.69184082,662.84,662.41,2.472]
[1752081930311,1.69184082,662.83,662.41,2.472]
[1752081931407,1.69184082,662.82,662.41,4.16782287]
[1752081932911,1.95446945,662.85,662.41,2.472]
[1752081934812,0.26262863,662.85,662.41,2.472]
[1752081935107,1.95471358,662.85,662.41,2.472]
[1752081941620,1.69208495,662.84,662.41,2.472]
[1752081942827,1.69208495,662.81,662.42,1.69606774]
[1752081947625,1.69208495,662.82,662.41,2.472]
[1752081949327,1.69208495,662.81,662.41,2.472]
[1752081951230,1.69208495,662.81,662.41,4.16806774]
[1752081953533,1.69208495,662.81,662.41,2.472]
[1752081953732,1.69208495,662.82,662.41,2.472]
[1752081956833,1.69208495,662.83,662.41,2.472]
[1752081957633,1.69208495,662.82,662.41,4.16806774]
[1752081958031,1.69208495,662.83,662.41,2.472]
[1752081963033,0.26262863,662.85,662.41,2.472]
[1752081973142,1.69208495,662.83,662.38,1.69606774]
[1752081976344,1.69208495,662.83,662.39,2.258]
[1752081977841,1.69208495,662.8,662.42,1.69606774]
[1752081978346,1.69208495,662.81,662.42,1.69606774]
[1752081978546,1.69208495,662.81,662.39,2.258]
[1752081978547,1.69208495,662.8,662.4,1.69606774]
[1752081979746,1.69208495,662.8,662.41,1.69606774]
[1752081981344,1.69208495,662.8,662.4,1.69606774]
[1752081986346,1.69208495,662.78,662.44,1.69606774]
[1752081987346,1.69208495,662.78,662.43,1.69606774]
[1752081987551,1.69208495,662.78,662.44,1.69606774]
[1752081988149,1.69208495,662.77,662.44,1.69606774]
[1752081988351,1.69208495,662.77,662.45,1.69606774]
[1752081988547,1.69208495,662.77,662.44,1.69606774]
[1752081992953,1.69208495,662.81,662.39,2.258]
[1752081993156,1.69208495,662.81,662.39,3.95406774]
[1752081993349,1.69208495,662.81,662.39,2.258]
[1752081993653,0.26262863,662.85,662.39,2.258]
[1752081993654,1.69208495,662.82,662.39,2.258]
[1752081999357,1.69208495,662.8,662.39,2.258]
[1752082000056,1.69208495,662.79,662.39,2.258]
[1752082000252,0.26262863,662.85,662.39,2.258]
[1752082000253,1.69208495,662.76,662.39,2.258]
[1752082000451,1.69208495,662.77,662.39,2.258]
[1752082001457,1.69208495,662.78,662.39,2.258]
[1752082002856,1.69208495,662.76,662.39,2.258]
[1752082003456,1.69208495,662.77,662.39,2.258]
[1752082003755,1.69208495,662.76,662.39,2.258]
[1752082004253,1.69208495,662.75,662.39,2.258]
[1752082004660,0.26262863,662.85,662.39,2.258]
[1752082004858,1.69311599,662.74,662.39,2.258]
[1752082005456,0.26262863,662.85,662.39,2.258]
[1752082005457,1.69311599,662.75,662.39,2.258]
[1752082005857,1.69311599,662.74,662.39,2.258]
[1752082006463,1.69311599,662.75,662.39,2.258]
[1752082006757,1.69311599,662.74,662.39,2.258]
[1752082007265,1.69311599,662.75,662.39,2.258]
[1752082007463,0.26262863,662.85,662.39,2.258]
[1752082007464,1.69311599,662.76,662.39,2.258]
[1752082009371,1.69311599,662.77,662.39,2.258]
[1752082011073,1.69311599,662.79,662.39,2.258]
[1752082015375,1.69311599,662.79,662.28,1.6970105]
[1752082017176,1.69311599,662.79,662.29,1.6970105]
[1752082019374,1.69311599,662.79,662.3,2.317]
[1752082021177,1.69311599,662.76,662.33,1.6970105]
[1752082022079,1.69311599,662.77,662.31,1.6970105]
[1752082025379,1.69311599,662.76,662.3,4.0140105]
[1752082025877,1.69311599,662.72,662.3,2.317]
[1752082026077,1.69311599,662.71,662.3,2.317]
[1752082026282,1.69311599,662.72,662.3,2.317]
[1752082027983,1.69311599,662.65,662.3,2.317]
[1752082028182,1.69311599,662.66,662.3,2.317]
[1752082029478,1.69311599,662.67,662.3,2.317]
[1752082030278,1.69311599,662.68,662.3,2.317]
[1752082030577,1.69311599,662.67,662.3,2.317]
[1752082031279,1.69311599,662.68,662.3,2.317]
[1752082033182,1.69311599,662.69,662.3,2.317]
[1752082035284,1.69311599,662.7,662.3,2.317]
[1752082036882,1.69311599,662.69,662.3,2.317]
[1752082037881,2.26101505,662.81,662.3,2.317]
[1752082037882,1.69311599,662.7,662.3,2.317]
[1752082038182,1.69311599,662.74,662.3,2.317]
[1752082041986,1.69311599,662.8,662.3,2.317]
[1752082042887,1.69311599,662.82,662.3,2.317]
[1752082044388,1.69311599,662.81,662.3,2.317]
[1752082045192,1.69311599,662.82,662.3,2.317]
[1752082045389,1.69311599,662.81,662.3,2.317]
[1752082047495,1.69311599,662.82,662.3,2.317]
[1752082050595,1.69311599,662.78,662.3,2.317]
[1752082051096,1.69311599,662.79,662.3,2.317]
[1752082052492,1.69311599,662.78,662.3,2.317]
[1752082052897,1.69311599,662.77,662.3,2.317]
[1752082054696,1.69311599,662.76,662.3,2.317]
[1752082055596,1.69311599,662.82,662.3,2.317]
[1752082057297,1.69311599,662.8,662.3,2.317]
[1752082057897,1.69311599,662.79,662.3,2.317]
[1752082059197,1.69311599,662.8,662.3,2.317]
[1752082060497,1.69311599,662.79,662.3,2.317]
[1752082062397,1.69311599,662.84,662.3,2.317]
[1752082064196,0.26266034,662.72,662.3,2.317]
[1752082077412,0.26266034,662.72,662.27,1.69489631]
[1752082077611,0.26266034,662.72,662.26,1.69489631]
[1752082079414,0.26266034,662.72,662.24,1.69489631]
[1752082081015,0.26266034,662.72,662.25,1.722]
[1752082083220,0.26266034,662.72,662.27,1.69489631]
[1752082087323,0.26266034,662.72,662.26,1.69489631]
[1752082087521,0.26266034,662.72,662.27,1.69489631]
[1752082087723,0.26266034,662.72,662.26,1.69489631]
[1752082088022,0.26266034,662.72,662.25,1.722]
[1752082091225,0.26266034,662.72,662.25,3.41689631]
[1752082091431,0.26266034,662.72,662.25,1.722]
[1752082092230,0.26266034,662.72,662.25,3.41689631]
[1752082094130,0.26266034,662.72,662.25,1.722]
[1752082094729,0.26266034,662.72,662.25,3.41689631]
[1752082097426,0.26266034,662.72,662.26,1.69489631]
[1752082097627,0.26266034,662.72,662.25,1.722]
[1752082097931,0.26266034,662.72,662.29,1.69647932]
[1752082101235,0.26266034,662.72,662.3,1.69647932]
[1752082101534,0.26266034,662.72,662.29,1.69647932]
[1752082102034,0.26266034,662.72,662.3,1.69647932]
[1752082103839,1.95564249,662.72,662.32,1.69647932]
[1752082104338,1.95564249,662.72,662.21,2.2631763]
[1752082104339,1.95564249,662.72,662.33,1.69647932]
[1752082104540,1.95564249,662.72,662.33,2.464]
[1752082105941,1.95564249,662.72,662.33,4.16047932]
[1752082107347,1.69298215,662.71,662.34,1.69647932]
[1752082108637,0.26266034,662.72,662.33,2.464]
[1752082117653,1.95564249,662.72,662.33,2.464]
[1752082122356,1.69298215,662.71,662.33,4.16047932]
[1752082124857,1.69298215,662.71,662.34,1.69647932]
[1752082125755,1.69298215,662.7,662.34,1.69647932]
[1752082127558,1.69298215,662.69,662.36,1.69647932]
[1752082127955,1.69298215,662.69,662.37,1.69647932]
[1752082129260,1.69298215,662.68,662.37,1.69647932]
[1752082132859,0.26266034,662.72,662.33,2.464]
[1752082132860,1.95564249,662.72,662.33,2.464]
[1752082136159,1.69298215,662.71,662.33,2.464]
[1752082142765,1.69298215,662.68,662.36,1.69647932]
[1752082146273,1.69298215,662.68,662.37,1.69647932]
[1752082147872,1.69298215,662.71,662.32,1.69647932]
[1752082148975,1.69298215,662.71,662.33,2.337]
[1752082150773,0.26266034,662.72,662.33,2.337]
[1752082160680,1.69298215,662.71,662.33,2.337]
[1752082161586,1.95564249,662.72,662.33,2.337]
[1752082164188,0.26266034,662.72,662.33,2.337]
[1752082166389,1.95564249,662.72,662.33,2.337]
[1752082167387,0.26266034,662.72,662.33,2.337]
[1752082171489,1.95564249,662.72,662.33,2.337]
[1752082172090,1.69298215,662.71,662.33,2.337]
[1752082173598,1.69298215,662.7,662.33,4.03347932]
[1752082174093,1.69298215,662.69,662.34,1.69647932]
[1752082174301,1.69298215,662.69,662.35,1.69647932]
[1752082175600,1.69298215,662.69,662.36,1.69647932]
[1752082176197,1.69298215,662.68,662.35,1.69647932]
[1752082177297,1.69298215,662.68,662.33,2.337]
[1752082177298,1.69298215,662.68,662.36,1.69647932]
[1752082178098,1.95564249,662.72,662.33,2.337]
[1752082180102,1.95564249,662.72,662.29,1.69647932]
[1752082182805,0.26266034,662.72,662.3,1.69647932]
[1752082183501,0.26266034,662.72,662.31,2.0]
[1752082187909,1.69298215,662.71,662.34,1.69647932]
[1752082188310,1.69298215,662.7,662.36,1.69647932]
[1752082195217,1.69298215,662.71,662.35,1.69647932]
[1752082199514,1.69298215,662.7,662.36,1.69647932]
[1752082202022,1.69298215,662.7,662.37,2.11]
[1752082205029,1.69298215,662.7,662.37,3.80647932]
[1752082205725,1.69298215,662.7,662.37,2.11]
[1752082206430,1.69298215,662.71,662.37,2.11]
[1752082207926,1.95564249,662.72,662.37,2.11]
[1752082209034,1.69298215,662.71,662.37,2.11]
[1752082212239,1.95564249,662.72,662.37,2.11]
[1752082214237,0.26266034,662.72,662.37,2.11]
[1752082214540,1.95564249,662.72,662.37,2.11]
[1752082214936,0.26266034,662.72,662.37,2.11]
[1752082215637,1.95564249,662.72,662.37,2.11]
[1752082215841,0.26266034,662.72,662.37,2.11]
[1752082216640,1.95564249,662.72,662.37,2.11]
[1752082218742,0.26266034,662.72,662.37,2.11]
[1752082219046,1.95665165,662.72,662.37,2.11]
[1752082220643,0.26266034,662.72,662.37,2.11]
[1752082230548,1.69399131,662.69,662.37,2.11]
[1752082235350,1.69561255,662.69,662.37,2.11]
[1752082235650,1.69561255,662.7,662.37,2.11]
[1752082236355,1.69561255,662.71,662.37,2.11]
[1752082236855,0.26266034,662.72,662.37,2.11]
[1752082261076,0.26266034,662.72,662.29,1.69842346]
[1752082261780,1.69565523,662.71,662.34,1.69842346]
[1752082262079,1.69565523,662.71,662.33,1.69842346]
[1752082262279,1.69565523,662.7,662.33,1.69842346]
[1752082263480,1.69565523,662.7,662.34,1.822]
[1752082266081,1.69565523,662.7,662.34,3.52042346]
[1752082266582,1.69565523,662.69,662.35,1.69842346]
[1752082267881,1.69565523,662.71,662.34,1.822]
[1752082272885,1.69565523,662.7,662.34,1.822]
[1752082273084,1.69565523,662.71,662.34,1.822]
[1752082274882,1.69565523,662.7,662.34,1.822]
[1752082276085,1.69565523,662.72,662.34,1.822]
[1752082277786,1.69565523,662.7,662.35,1.69842346]
[1752082278287,1.69565523,662.71,662.34,3.52042346]
[1752082278491,1.69565523,662.75,662.37,1.69842346]
[1752082280193,1.69565523,662.76,662.36,1.69842346]
[1752082281195,1.69565523,662.84,662.34,1.822]
[1752082285501,1.69565523,662.85,662.34,1.822]
[1752082285797,1.69565523,662.84,662.34,1.822]
[1752082286201,1.69565523,662.85,662.34,1.822]
[1752082287195,1.69565523,662.86,662.34,1.822]
[1752082291206,1.69565523,662.83,662.34,1.822]
[1752082296410,1.69565523,662.81,662.34,1.822]
[1752082296610,1.69565523,662.79,662.34,3.52042346]
[1752082297407,1.69565523,662.79,662.34,1.822]
[1752082300309,7.90663722,663.91,662.35,1.69842346]
[1752082300310,1.69565523,662.78,662.35,1.69842346]
[1752082302915,1.69565523,662.79,662.33,1.69842346]
[1752082304512,1.69565523,662.79,662.34,1.536]
[1752082304712,1.69565523,662.81,662.34,1.536]
[1752082307717,1.69565523,662.8,662.34,1.536]
[1752082312718,5.64759801,663.68,662.34,1.536]
[1752082312719,1.69565523,662.79,662.34,1.536]
[1752082313519,1.69565523,662.79,662.34,3.23442346]
[1752082314520,1.69565523,662.76,662.38,1.69842346]
[1752082316023,1.69565523,662.77,662.38,1.69842346]
[1752082316221,1.69565523,662.76,662.38,1.69842346]
[1752082319323,1.69565523,662.77,662.39,1.69842346]
[1752082320223,1.69565523,662.77,662.38,1.69842346]
[1752082321024,1.69565523,662.79,662.34,1.536]
[1752082327830,1.69565523,662.8,662.34,1.536]
[1752082329132,1.69565523,662.79,662.34,1.536]
[1752082329930,1.69565523,662.8,662.34,1.536]
[1752082330234,1.69565523,662.79,662.34,1.536]
[1752082330829,1.69565523,662.77,662.34,1.536]
[1752082331133,1.69565523,662.76,662.34,1.536]
[1752082331533,1.69565523,662.7,662.34,1.536]
[1752082332333,1.69565523,662.71,662.34,1.536]
[1752082333733,1.69565523,662.7,662.34,1.536]
[1752082334432,1.69565523,662.71,662.34,1.536]
[1752082335340,0.26266926,662.75,662.34,1.536]
[1752082335541,1.69334659,662.71,662.34,1.536]
[1752082335742,1.69334659,662.71,662.23,1.69678282]
[1752082336037,0.26266926,662.75,661.93,0.26266232]
[1752082336038,1.69334659,662.7,662.22,1.69678282]
[1752082336241,1.69334659,662.7,662.23,1.69678282]
[1752082336440,1.69334659,662.7,662.22,1.69678282]
[1752082337239,1.69334659,662.71,662.22,1.69678282]
[1752082337738,1.69334659,662.67,662.27,1.69678282]
[1752082338343,1.69334659,662.67,662.16,2.2631763]
[1752082338344,1.69334659,662.72,662.19,1.69678282]
[1752082339145,1.69334659,662.72,662.2,1.62]
[1752082339340,1.69334659,662.73,662.2,1.62]
[1752082341145,0.26266926,662.75,662.2,1.62]
[1752082341444,1.69254793,662.73,662.2,1.62]
[1752082341744,1.69254793,662.74,662.2,1.62]
[1752082348147,1.69254793,662.72,662.21,1.69603039]
[1752082349249,1.69254793,662.72,662.2,3.31603039]
[1752082350854,1.69254793,662.72,662.21,1.69603039]
[1752082351155,1.69254793,662.72,662.2,3.31603039]
[1752082351352,1.69254793,662.73,662.2,3.31603039]
[1752082351652,1.69254793,662.72,662.22,1.69603039]
[1752082352356,1.69254793,662.74,662.2,1.62]
[1752082352856,1.69254793,662.73,662.2,3.31603039]
[1752082353552,1.69254793,662.73,662.2,1.62]
[1752082354655,1.69254793,662.68,662.2,1.62]
[1752082355358,1.69254793,662.69,662.2,1.62]
[1752082357055,1.69254793,662.69,662.14,1.69603039]
[1752082360156,1.69254793,662.69,662.15,1.769]
[1752082362164,1.69254793,662.67,662.16,1.69603039]
[1752082362464,1.69254793,662.66,662.15,3.46503039]
[1752082363365,1.69254793,662.65,662.17,1.69603039]
[1752082363566,1.69254793,662.66,662.17,1.69603039]
[1752082363765,1.69254793,662.7,662.15,1.769]
[1752082364059,1.69254793,662.68,662.15,1.769]
[1752082366365,1.69254793,662.69,662.15,1.769]
[1752082366562,1.69254793,662.68,662.15,1.769]
[1752082367561,0.26266926,662.75,662.15,1.769]
[1752082367562,1.69254793,662.69,662.15,1.769]
[1752082371869,1.69254793,662.68,662.15,1.769]
[1752082373070,1.69254793,662.68,662.07,1.69603039]
[1752082373670,1.69254793,662.65,662.12,1.69603039]
[1752082374069,1.69254793,662.65,662.13,1.69603039]
[1752082374371,1.69254793,662.59,662.06,1.69603039]
[1752082374572,1.69254793,662.62,662.09,1.69603039]
[1752082375768,1.69254793,662.62,662.1,1.73]
[1752082377569,1.69254793,662.61,662.1,3.42603039]
[1752082377771,1.69254793,662.61,662.1,1.73]
[1752082377971,1.69254793,662.63,662.1,1.73]
[1752082379871,1.69254793,662.58,662.1,1.73]